Cogmind - Beta 10.2 @@@ ROGUE MODE // 2021.11.25 @ 13:10:06 Player: Runcible AI Result: Destroyed by L-31 Rogue with Katana Performance ------------- Evolutions (2) 1000 Regions Visited (4) 800 Robots Destroyed (56) 280 Value Destroyed (1458) 1458 Prototype IDs (4) 80 Alien Tech Used (0) 0 Bonus (129) 129 TOTAL SCORE: 3747 Bonus ------- High Alert Combat Kills 129 Cogmind --------- Core Integrity 0/550 Matter 117/300 Energy 33/100 System Corruption 9% Temperature Cool (9) Movement Core (550) Ox10 Location -8/Storage Parts ------- > --- POWER (1) -------- (None) > --- PROPULSION (4) --- (None) > --- UTILITY (4) ------ High-capacity Storage Unit > --- WEAPON (2) ------- (None) > --- INVENTORY (12) --- Improved Heat Sink Armor Integrity Analyzer Hacking Suite Peak State ------------ > --- POWER ------------ Light Deuterium Engine > --- PROPULSION ------- Light Treads Aluminum Leg Aluminum Leg Aluminum Leg > --- UTILITY ---------- High-capacity Storage Unit Seismic Analyzer Light Armor Plating Hardened Medium Armor Plating > --- WEAPON ----------- Guided EMP Blaster > --- INVENTORY -------- Light Ion Engine Improved Heat Sink Armor Integrity Analyzer Shield Generator Hacking Suite Improved EM Shotgun Particle Gun Light Assault Rifle Heavy Assault Rifle Rocket Launcher [Rating: 27] Favorites ----------- Power Ion Engine Engine Ion Engine Power Core Light Nuclear Core Propulsion Aluminum Leg Treads Light Treads Leg Aluminum Leg Utility High-capacity Storage Unit Device Improved Terrain Scanner Storage High-capacity Storage Unit Processor Seismic Analyzer Protection Light Armor Plating Weapon Heavy EM Pulse Gun Energy Gun Heavy EM Pulse Gun Energy Cannon Advanced Beam Cannon Ballistic Gun Light Assault Rifle Launcher Rocket Launcher Special Melee Weapon Datajack Build | -11 -10 -9 -8 -8 ------- Run | Scr Mat Mat Mat Sto Slots Evolved 4 | . . 2 2 . Power . | . . . . . Propulsion 2 | . . . 2 . Utility 2 | . . 2 . . Weapon . | . . . . . Parts Attached 67 | 7 1 12 5 42 Power 6 | 1 . 1 . 4 Engine 5 | 1 . 1 . 3 Core 1 | . . . . 1 Reactor . | . . . . . Propulsion 13 | 2 . 2 2 7 Treads 8 | . . 2 2 4 Leg 5 | 2 . . . 3 Wheel . | . . . . . Hover . | . . . . . Flight . | . . . . . Utility 18 | 2 1 4 1 10 Device 8 | 1 . 1 1 5 Storage 4 | 1 1 2 . . Processor 1 | . . 1 . . Hackware . | . . . . . Protection 5 | . . . . 5 Artifact . | . . . . . Weapon 30 | 2 . 5 2 21 Energy Gun 10 | . . 2 1 7 Energy Cannon 3 | . . . . 3 Ballistic Gun 9 | 2 . 2 . 5 Ballistic Cannon . | . . . . . Launcher 7 | . . . 1 6 Special Weapon . | . . . . . Impact Weapon . | . . . . . Slashing Weapon . | . . . . . Piercing Weapon . | . . . . . Special Melee Weapon 1 | . . 1 . . Unidentified Prototypes 3 | . . 1 . 2 Parts Lost 35 | . . 2 4 29 Power 4 | . . . 1 3 Propulsion 13 | . . 2 2 9 Utility 9 | . . . 1 8 Weapon 9 | . . . . 9 Highest Loss Streak 16 | . . 2 3 16 Average Slot Usage (%) 93 | . 100 99 98 86 Engine 8 | . 14 11 8 4 Core 1 | . . . . 2 Treads 12 | . . 15 35 10 Leg 13 | . 28 6 . 16 Device 12 | . 14 17 17 8 Storage 12 | . 14 15 9 9 Processor 8 | . . 11 9 8 Protection 3 | . . . . 8 Energy Gun 7 | . . 8 17 6 Energy Cannon 1 | . . . . 3 Ballistic Gun 8 | . 28 13 . 1 Launcher 2 | . . . . 6 Naked Turns . | . . . . . Heaviest Build 76 | 13 41 76 46 56 Greatest Support 80 | 20 20 40 80 40 Greatest Overweight (x) 14 | 2 2 3 . 14 Average Overweight (x) 1 | . 1 1 . 1 Largest Inventory Capacity 20 | 6 12 20 12 12 Average Capacity 12 | 5 10 15 12 12 Most Carried 12 | 6 8 12 12 12 Average Carried 9 | 3 7 9 10 10 Final Capacity 12 | 6 12 12 12 12 Final Carried 12 | 6 8 12 12 3 Class Distribution -------------------- 33% | Scavenger-Mutant 28% | Skirmisher 22% | Mutant 15% | Hauler-Mutant Dominant Class ---------------- Mutant | -10/Materials Skirmisher | -9/Materials Skirmisher | -8/Materials Scavenger-Mutant | -8/Storage Resources | -11 -10 -9 -8 -8 ----------- Run | Scr Mat Mat Mat Sto Matter Collected 1162 | 310 53 166 73 560 Remotely . | . . . . . Salvage Created 1765 | 113 53 322 113 1164 Parts 120 | 9 5 18 10 78 Haulers Intercepted 2 | . . 1 . 1 Recyclers Shooed 2 | . . . . 2 Parts Field Recycled . | . . . . . Retrieved Matter . | . . . . . Parts Self-Destructed . | . . . . . Prevented . | . . . . . Kills | -11 -10 -9 -8 -8 ------- Run | Scr Mat Mat Mat Sto Combat Hostiles Destroyed 32 | . 3 5 3 21 Guns 9 | . 3 4 1 1 Cannons 5 | . . . . 5 AOE 18 | . . 1 2 15 Classes Destroyed 12 | 2 1 4 1 4 Worker 5 | . . 1 . 4 Builder 4 | . . . . 4 Tunneler 2 | 2 . . . . Hauler 2 | . . 1 . 1 Recycler 6 | 1 . 1 . 4 Operator 3 | . . 1 . 2 Watcher 2 | . . . . 2 Swarmer 9 | . 3 3 . 3 Grunt 7 | . . . 2 5 Duelist 2 | . . . . 2 Sentry 13 | . . 2 1 10 Hunter 1 | . . . . 1 Best Kill Streak 8 | 3 3 3 2 8 Combat Bots Only 5 | . 3 3 2 5 Max Kills in Single Turn 5 | 1 1 2 1 5 Gunslinging . | . . . . . Exploded 2 | . . 1 1 2 Melee . | . . . . . Uniques/NPCs Destroyed . | . . . . . Combat | -11 -10 -9 -8 -8 -------- Run | Scr Mat Mat Mat Sto Damage Taken 3936 | . 242 340 651 2703 Core 636 | . 36 37 54 509 Absorbed by Shields 4 | . . . . 4 Core Remaining (%) 91 | 100 85 90 . . Volleys Fired 111 | 10 11 21 8 61 Largest 2 | 2 2 2 2 2 Hottest 133 | 40 40 90 90 133 Shots Fired 209 | 20 22 42 12 113 Gun 139 | 20 22 42 9 46 Cannon 27 | . . . . 27 Launcher 43 | . . . 3 40 Special . | . . . . . Kinetic 77 | 20 22 27 . 8 Thermal 36 | . . . . 36 Explosive 42 | . . . 3 39 Electromagnetic 54 | . . 15 9 30 Robot Hit Streak 16 | 3 5 13 10 16 Robot Miss Streak 5 | 3 3 4 2 5 Penetration Max . | . . . . . Secondary Targets 2 | . . 1 . 1 Max Gunslinging Chain 1 | . . 1 . 1 Shots Hit Robots 135 | 10 13 28 8 76 Core Hits 101 | 4 4 12 7 74 Critical Hits 3 | . . . . 3 Critical Kills . | . . . . . Critical Parts Destroyed 3 | . . . . 3 Melee Attacks 1 | . . 1 . . Impact . | . . . . . Slashing . | . . . . . Piercing . | . . . . . Sneak Attacks 1 | . . 1 . . Combat Hostiles . | . . . . . Follow-up Attacks . | . . . . . Damage Inflicted 3896 | 121 131 338 277 3029 Guns 1180 | 121 131 308 93 527 Cannons 383 | . . . . 383 Explosions 2329 | . . 26 184 2119 Melee . | . . . . . Ramming 4 | . . 4 . . Kinetic 468 | 121 131 160 . 56 Thermal 701 | . . 26 . 675 Explosive 2044 | . . . 184 1860 Electromagnetic 679 | . . 148 93 438 Impact . | . . . . . Slashing . | . . . . . Piercing . | . . . . . Highest Corruption 9 | . . . . 9 Average Corruption 8 | . . . . 8 Corruption Purged . | . . . . . Effects 13 | . . . . 13 Message Errors 4 | . . . . 4 Matter Fused 2 | . . . . 2 Energy Discharges 1 | . . . . 1 Data Loss (minor) 1 | . . . . 1 Data Loss (major) 1 | . . . . 1 Misfires 1 | . . . . 1 Targeting Errors 3 | . . . . 3 Overload Shots . | . . . . . Overflow Damage 146 | . . . . 146 Projectiles . | . . . . . Explosions 146 | . . . . 146 Melee . | . . . . . Knockbacks . | . . . . . Impact . | . . . . . Kinetic . | . . . . . Secondary . | . . . . . Self-Inflicted Damage 323 | . . 13 . 310 Shots 13 | . . 1 . 12 Rammed 1 | . . 1 . . Targets Rammed 1 | . . 1 . . Kicked . | . . . . . Crushed . | . . . . . Highest Temperature 308 | . . 75 33 308 Average Temperature 73 | . . 20 14 95 Received Heat Transfer 699 | . . 81 63 555 Siege Activations . | . . . . . Robots Corrupted . | . . . . . Combat Hostiles . | . . . . . Parts Fried 2 | . . 1 . 1 Impact Corruptions . | . . . . . Robots Melted . | . . . . . Combat Hostiles . | . . . . . Parts Melted . | . . . . . Heat Transferred 1014 | . . 50 . 964 Parts Sabotaged . | . . . . . Parts Stolen . | . . . . . Parts Stripped . | . . . . . Power Chain Reactions 3 | . . 1 . 2 Missiles Intercepted . | . . . . . Alert | -11 -10 -9 -8 -8 ------- Run | Scr Mat Mat Mat Sto Peak Influence 807 | 15 98 105 157 807 Initial 53 | . 9 40 40 53 Average 197 | 6 45 44 94 402 Maximum Alert Level 3 | . . . . 3 Low Security (%) 66 | 100 100 100 100 20 Level 1 15 | . . . . 36 Level 2 14 | . . . . 33 Level 3 4 | . . . . 9 Level 4 . | . . . . . Level 5 . | . . . . . High Security . | . . . . . Max Security . | . . . . . Squads Dispatched 9 | . . 1 1 7 Investigation 2 | . . . 1 1 Extermination . | . . . . . Reinforcement 3 | . . 1 . 2 Assault 1 | . . . . 1 Garrison 3 | . . . . 3 Intercept . | . . . . . Construction Impeded . | . . . . . Haulers Reinforced . | . . . . . Stealth | -11 -10 -9 -8 -8 --------- Run | Scr Mat Mat Mat Sto Distress Signals 4 | . 1 1 . 2 Communications Jammed . | . . . . . Distress Signals . | . . . . . Times Spotted 60 | . 5 9 9 37 Peak Tracking Total 6 | . 5 3 5 6 Tactical Retreats 6 | . . . 1 5 Traps | -11 -10 -9 -8 -8 ------- Run | Scr Mat Mat Mat Sto Traps Triggered 2 | . . . 1 1 Indirectly . | . . . . . Trap Hack Attempts . | . . . . . Triggered . | . . . . . Disarmed . | . . . . . Reprogrammed . | . . . . . Reused . | . . . . . Traps Extracted . | . . . . . Installed . | . . . . . Triggered . | . . . . . Machines | -11 -10 -9 -8 -8 ---------- Run | Scr Mat Mat Mat Sto Machines Disabled 12 | . . . . 12 Max in Single Turn 3 | . . . . 3 Machines Sabotaged . | . . . . . Garrisons Compromised . | . . . . . Overloaded Fab Kills . | . . . . . Fab Network Shutdowns . | . . . . . Hacking | -11 -10 -9 -8 -8 --------- Run | Scr Mat Mat Mat Sto Machines Accessed 3 | . 1 1 . 1 Terminals 3 | . 1 1 . 1 Fabricators . | . . . . . Repair Stations . | . . . . . Recycling Units . | . . . . . Scanalyzers . | . . . . . Garrison Access . | . . . . . Total Hacks 14 | . 9 2 . 3 Successful 9 | . 7 . . 2 Failed 5 | . 2 2 . 1 Catastrophic . | . . . . . Database Lockouts . | . . . . . Manual . | . . . . . Terminals 14 | . 9 2 . 3 Fabricators . | . . . . . Repair Stations . | . . . . . Recycling Units . | . . . . . Scanalyzers . | . . . . . Garrison Access . | . . . . . Terminal Hacks 9 | . 7 . . 2 Robot Analysis 1 | . 1 . . . Prototype ID Bank 1 | . . . . 1 Alert Level 1 | . . . . 1 Locate Traps 1 | . 1 . . . Dispatch Records 1 | . 1 . . . Transport Status 1 | . 1 . . . Investigation Status 1 | . 1 . . . Recall Investigation 1 | . 1 . . . Hauler Manifests 1 | . 1 . . . Fabricator Hacks . | . . . . . Repair Station Hacks . | . . . . . Recycling Unit Hacks . | . . . . . Scanalyzer . | . . . . . Garrison Access Hacks . | . . . . . Unauthorized Hacks . | . . . . . Terminals . | . . . . . Fabricators . | . . . . . Repair Stations . | . . . . . Recycling Units . | . . . . . Scanalyzers . | . . . . . Garrison Access . | . . . . . Data Cores Recovered 1 | . . 1 . . Used . | . . . . . Hacking Detections 3 | . 1 1 . 1 Full Trace Events 1 | . . . . 1 Feedback Events 1 | . . . . 1 Corruption 1 | . . . . 1 Feedback Blocked . | . . . . . Robot Schematics Acquired . | . . . . . Robots Built . | . . . . . Matter . | . . . . . Time . | . . . . . Total Robot Build Rating . | . . . . . Part Schematics Acquired . | . . . . . Parts Built . | . . . . . Matter . | . . . . . Time . | . . . . . Total Part Build Rating . | . . . . . Parts Repaired . | . . . . . Time . | . . . . . Parts Recycled . | . . . . . Recycled Matter . | . . . . . Retrieved Matter . | . . . . . Retrieved Components . | . . . . . Parts Scanalyzed . | . . . . . Part Schematics Acquired . | . . . . . Parts Damaged . | . . . . . Bothacking | -11 -10 -9 -8 -8 ------------ Run | Scr Mat Mat Mat Sto Used RIF Installer . | . . . . . Robots Hacked 1 | . . 1 . . Non-combat 1 | . . 1 . . Combat . | . . . . . Robot Hacks Applied 1 | . . 1 . . no_distress 1 | . . 1 . . Relay Couplers Released . | . . . . . Robots Rewired . | . . . . . Allies Hacked . | . . . . . Hacks Repelled . | . . . . . Allies | -11 -10 -9 -8 -8 -------- Run | Scr Mat Mat Mat Sto Total Allies . | . . . . . Largest Group . | . . . . . Highest-Rated Group . | . . . . . Highest-Rated Ally . | . . . . . Total Orders . | . . . . . Ally Attacks . | . . . . . Total Damage . | . . . . . Kills . | . . . . . Allies Corrupted . | . . . . . Allies Melted . | . . . . . Intel | -11 -10 -9 -8 -8 ------- Run | Scr Mat Mat Mat Sto Robot Analysis Total 1 | . 1 . . . Derelict Logs Recovered . | . . . . . Drone Launches . | . . . . . Drone Recoveries . | . . . . . Exploration | -11 -10 -9 -8 -8 ------------- Run | Scr Mat Mat Mat Sto Turns Passed 2115 | 108 253 708 152 894 Spaces Moved 920 | 52 139 319 55 355 Core 16 | 10 . . . 6 Treads 407 | . . 233 55 119 Legs 497 | 42 139 86 . 230 Wheels . | . . . . . Hover . | . . . . . Flight . | . . . . . Fastest Speed 50 | 50 120 180 160 150 Average Speed 174 | 111 156 188 160 181 Slowest Speed 750 | 150 180 210 160 750 Overloaded Moves . | . . . . . Propulsion Burnouts . | . . . . . Robots Hopped . | . . . . . Cave-ins Triggered 1 | . . . . 1 Exploration Rate (%) 34 | 6 31 38 11 85 Regions Visited 4 Branch Regions 1 Pre-discovered Areas . | . . . . . Known Exits Taken . | . . . . . Unknown Exits Taken 4 | 1 1 1 1 . Scrap Searched . | . . . . . Spaces Dug . | . . . . . Terrain Destroyed 302 | . . 3 22 277 Melee . | . . . . . Projectile 1 | . . . . 1 AOE 301 | . . 3 22 276 Terrain Rammed . | . . . . . Walls Destroyed . | . . . . . Machines Disabled . | . . . . . Actions | -11 -10 -9 -8 -8 --------- Run | Scr Mat Mat Mat Sto Total 1223 | 83 155 386 106 493 Wait 63 | 2 2 12 36 11 Move 916 | 51 138 318 54 355 Hop . | . . . . . Pick Up 49 | 13 2 14 3 17 Fast Attach 3 | . . . . 3 Attach 38 | 7 . 5 3 23 Detach 3 | . . 1 . 2 Swap 26 | . 1 7 2 16 Drop 12 | . 1 6 . 5 Fire 111 | 10 11 21 8 61 Melee 1 | . . 1 . . Ram . | . . . . . Kick . | . . . . . Crush 1 | . . 1 . . Escape Stasis . | . . . . . Rewire . | . . . . . Trap . | . . . . . Miscellaneous . | . . . . . Route ------- -11/Scrapyard -10/Materials (discovered 2 exits: *Mat / [*Min]) -9/Materials -8/Materials -8/Storage History --------- Turn | Location | Event 9 | -11/Scrapyard | Discovered new exit (range 15) 109 | -11/Scrapyard | Entered Materials 309 | -10/Materials | Build established: Mutant 311 | -10/Materials | Discovered new exit (range 13) 351 | -10/Materials | Discovered new exit (range 5) 362 | -10/Materials | Entered another Materials area 362 | -9/Materials | Evolved 2 slots: Utility x2 654 | -9/Materials | Build established: Hauler-Mutant 999 | -9/Materials | Build established: Skirmisher 1041 | -9/Materials | Discovered new exit (range 16) 1070 | -9/Materials | Entered another Materials area 1070 | -8/Materials | Evolved 2 slots: Propulsion x2 1133 | -8/Materials | Discovered new exit (range 16) 1222 | -8/Materials | Entered Storage 1252 | -8/Storage | Lost 3 parts (1p2n) 1362 | -8/Storage | Lost 4 parts (2n2u) 1711 | -8/Storage | Build established: Scavenger-Mutant 1820 | -8/Storage | Garrison activated, responded to threat 1842 | -8/Storage | Crushed by falling debris 1873 | -8/Storage | Lost 4 parts (2n2w) 2015 | -8/Storage | Core integrity fell below 50% 2022 | -8/Storage | First assault squad dispatched 2108 | -8/Storage | Core integrity fell below 20% 2116 | -8/Storage | Destroyed by L-31 Rogue with Katana Last Messages --------------- 02076_ Imp. EM Shotgun destroyed. 02078_ Propulsion Shielding destroyed. 02078_ Aluminum Leg destroyed. 02089_ L-31 Rogue destroyed. 02091_ R-06 Scavenger collects Imp. Aluminum Leg. 02093_ The unstable cave ceiling collapses. 02094_ System corrupted: Energy discharge (-6). 02094_ Aluminum Leg destroyed. 02096_ Lgt. Assault Rifle destroyed. 02096_ Adv. Terrain Scanner destroyed. 02098_ The unstable cave ceiling collapses. 02100_ Lgt. Ion Engine destroyed. 02100_ Lgt. Treads destroyed. 02104_ Adv. Beam Cannon destroyed. 02109_ Hrd. Medium Armor Plating destroyed. 02110_ R-06 Scavenger collects Imp. Ion Engine. 02111_ Shield Generator destroyed. 02112_ System corrupted: Matter fused (-10). 02114_ The unstable cave ceiling collapses. 02114_ Hvy. Assault Rifle destroyed. Map ----- +----------------------------------------------------+ | "? " #??###?##?#????? # # """ # """" | | "? " #???#??######???"?# + ?"" + | | " ?" ##???#??####??????# # ??" # | | """" #???#???###???"???# #?"?? ### #####+#### | | ###?#?#?#??## ????# #?? ??# # ## | | #?#??###??######### #???? ??# # """## | | ############# ?? # ##?##???# # """#? | | ?#??#??#???## """?" ######## # """## | | ?#?#?######?# """"" #? | | ?#???#?#????# """""? # ######### """#? | | ??#?###?###?? ?? ###????# # """## | | ####???#??????## #### # ##?#?## [ """#? | | ?#???##?###?### ##???## = ## | | ?#????#?##???# % ###?#?### # ######? | | ?##?#?????#?### = ###?##?######?#??? | | ??????#???#?## =% *% #?#????##?#?#?#??? | | #???#??#?????## * # ##?##??##?#???#??? | | ##???##?#??### # # #????#????#??#????? | | ??#?##?##??#?## #######?#?#????????? | | ??#????####???## * #?#??#??##???? | | ????#??#????#### # g #??##??#?????# | | ???????#???????##"T r #??####?????#? | | ???????#??????#?#""" g# ##?##??##????? | | ?????#????#??#??#### # = ###??????#?### | | ???????#?#????#????# %l #?##?????????? | | ?#???????##????##??## #/@!! ###??#?#?????# | | ??????????#??#?#??## # #############?###?#?????#? | | | | | | | | | | | | | | | | | | | | | | | | | | | | | | | | | | | | | | | | | | | | | | | +----------------------------------------------------+ Best States ------------- Heat Dissipation 45 Energy Generation 14 Energy Capacity 250 Matter Stores 300 Matter Capacity 300 Sight Range 16 Robot Scan Range 10 Terrain Scan Range 20 Terrain Scan Density 60 Armor Coverage 375 Propulsion Shielding 33 Evasion (%) 50 Recoil Reduction 4 Item Schematics ----------------- None Robot Schematics ------------------ None Fabricated ------------ Nothing Alien Tech Used ----------------- None Achievements -------------- Maybe Next Time I'll Detach My Launcher One Hack Too Far Shopping List Significant Disruption Challenges ------------ None Game ------ Seed HackingCentriumShield Manual? 0 Play Time 00:41:20 Cumulative 7.7 hours Start 2021.11.25 @ 12:29:13 End 2021.11.25 @ 13:10:06 Sessions 1 Manual Loads 0 Difficulty Rogue Special Mode None Game No. 8 Rogue 8 Adventurer 0 Explorer 0 Win Type - Total 0 Types 0/0/0/0/0/0/0/0/0 Lore% 3 Gallery% 12 Achievement% 11 Wizard Run 0 Options --------- ASCII 0 Keyboard 0 Movement Mouse Keybinds 0 Fullscreen 1 Font 24/Smallcaps Map View 76x50 Tactical HUD 1 Map Filters NONE Filters NONE Steam 1 RUN: b5cda561-b21a-4640-ab0f-4cf835bf0335